lending/lending_fUSD_20240411
["ID","MTS","AMOUNT","RATE_DAILY","PERIOD"]
[322201156,1712869985660,-500.0,0.0003041,2]
[322201157,1712869985670,-17072.27,0.0003041,2]
[322201158,1712869985682,-3052.22,0.0003041,2]
[322201159,1712869985691,-500.0,0.0003041,2]
[322201160,1712869985701,-3640.47,0.0003041,2]
[322201161,1712869985710,-1957.97,0.0003041,2]
[322201162,1712869985719,-500.0,0.0003041,2]
[322201163,1712869985728,-955.9,0.0003041,2]
[322201164,1712869985738,-500.0,0.0003041,2]
[322201165,1712869985748,-500.0,0.0003041,2]
[322201166,1712869985757,-3659.25,0.0003041,2]
[322201167,1712869985767,-5766.3,0.0003041,2]
[322201168,1712869985777,-3575.16,0.0003041,2]
[322201169,1712869985786,-711.78,0.0003041,2]
[322201170,1712869985796,-500.0,0.0003041,2]
[322201171,1712869985804,-7639.5,0.0003041,2]
[322201172,1712869985813,-1392.31,0.0003041,2]
[322201173,1712869985822,-7389.58,0.0003041,2]
[322201174,1712869985831,-3014.69,0.0003041,2]
[322201175,1712869985841,-2191.02,0.0003041,2]
[322201176,1712869985850,-5336.03,0.0003041,2]
[322201177,1712869985859,-161.56516275,0.0003041,2]
[322201178,1712869985868,-4291.51,0.0003041,2]
[322201179,1712869985878,-1051.14,0.0003041,2]
[322201180,1712869985888,-604.03,0.0003041,2]
[322201181,1712869985897,-52708.74,0.0003041,2]
[322201182,1712869985907,-3260.75,0.0003041,2]
[322201183,1712869985916,-5115.15,0.0003041,2]
[322201184,1712869985926,-882.87,0.0003041,2]
[322201185,1712869985935,-5854.93,0.0003041,2]
[322201186,1712869985945,-8061.26,0.0003041,2]
[322201187,1712869985954,-916.85,0.0003041,2]
[322201188,1712869985963,-745.2,0.0003041,2]
[322201189,1712869985972,-7112.46,0.0003041,2]
[322201190,1712869985982,-6099.37,0.0003041,2]
[322201191,1712869985991,-1872.85,0.0003041,2]
[322201192,1712869986001,-1834.17,0.0003041,2]
[322201193,1712869986010,-5187.78,0.0003041,2]
[322201194,1712869986019,-1268.14,0.0003041,2]
[322201195,1712869986028,-500.0,0.0003041,2]
[322201196,1712869986037,-1960.92,0.0003041,2]
[322201197,1712869986046,-3993.87,0.0003041,2]
[322201198,1712869986056,-1940.4,0.0003041,2]
[322201199,1712869986066,-1144.44,0.0003041,2]
[322201200,1712869986075,-30065.72,0.0003041,2]
[322201201,1712869986084,-1318.07,0.0003041,2]
[322201202,1712869986094,-3922.38,0.0003041,2]
[322201203,1712869986103,-500.0,0.0003041,2]
[322201204,1712869986112,-1507.79,0.0003041,2]
[322201205,1712869986122,-7272.96,0.0003041,2]
[322201206,1712869986131,-2185.46,0.0003041,2]
[322201207,1712869986141,-500.0,0.0003041,2]
[322201208,1712869986150,-1894.92,0.0003041,2]
[322201209,1712869986159,-500.0,0.0003041,2]
[322201210,1712869986168,-739.67,0.0003041,2]
[322201211,1712869986178,-2576.43,0.0003041,2]
[322201212,1712869986187,-500.0,0.0003041,2]
[322201213,1712869986196,-752.22,0.0003041,2]
[322201214,1712869986206,-2674.56,0.0003041,2]
[322201215,1712869986214,-918.8,0.0003041,2]
[322201216,1712869986224,-548.63,0.0003041,2]
[322201217,1712869986233,-636.15,0.0003041,2]
[322201218,1712869986243,-729.18,0.0003041,2]
[322201219,1712869986252,-763.21,0.0003041,2]
[322201220,1712869986261,-3486.04,0.0003041,2]
[322201221,1712869986271,-8034.42,0.0003041,2]
[322201222,1712869986281,-3850.53,0.0003041,2]
[322201223,1712869986290,-544.38,0.0003041,2]
[322201224,1712869986300,-1687.56,0.0003041,2]
[322201225,1712869986310,-500.0,0.0003041,2]
[322201226,1712869986319,-4101.12,0.0003041,2]
[322201227,1712869986328,-565.51,0.0003041,2]
[322201228,1712869986338,-2084.11,0.0003041,2]
[322201229,1712869986347,-544.26,0.0003041,2]
[322201230,1712869986357,-1782.79,0.0003041,2]
[322201231,1712869986367,-3404.95,0.0003041,2]
[322201232,1712869986377,-510.02,0.0003041,2]
[322201233,1712869986388,-500.0,0.0003041,2]
[322201234,1712869986401,-500.0,0.0003041,2]
[322201235,1712869986410,-2028.74,0.0003041,2]
[322201236,1712869986419,-500.0,0.0003041,2]
[322201237,1712869986430,-500.0,0.0003041,2]
[322201238,1712869986440,-3939.9,0.0003041,2]
[322201239,1712869986449,-733.75,0.0003041,2]
[322201240,1712869986458,-5901.28,0.0003041,2]
[322201241,1712869986468,-2166.88,0.0003041,2]
[322201242,1712869986478,-500.0,0.0003041,2]
[322201243,1712869986488,-722.6,0.0003041,2]
[322201244,1712869986498,-538.95,0.0003041,2]
[322201245,1712869986507,-3339.86,0.0003041,2]
[322201246,1712869986517,-1774.88,0.0003041,2]
[322201247,1712869986526,-500.0,0.0003041,2]
[322201248,1712869986536,-896.99,0.0003041,2]
[322201249,1712869986546,-154.06513536,0.00030412,2]
[322201250,1712869986555,-263.135,0.0003044,2]
[322201251,1712869986566,-162.262,0.0003044,2]
[322201252,1712869986576,-1260.0,0.0003044,2]
[322201253,1712869986585,-537.079,0.0003044,2]
[322201254,1712869986595,-435.0,0.0003044,2]
[322201255,1712869986605,-284.008,0.0003044,2]
[322201256,1712869986614,-746.086,0.0003044,2]
[322201257,1712869986623,-1946.0,0.0003044,2]
[322201258,1712869986633,-609.897,0.0003044,2]
[322201259,1712869986642,-1130.0,0.0003044,2]
[322201260,1712869986652,-217.444,0.0003044,2]
[322201261,1712869986662,-3033.0,0.0003044,2]
[322201262,1712869986671,-398.0,0.0003044,2]
[322201263,1712869986681,-1467.0,0.0003044,2]
[322201264,1712869986691,-500.0,0.000305,2]
[322201265,1712869986701,-30357.46630362,0.00030529,7]
[322201266,1712869986711,-619.71921938,0.00030575,30]
[322201267,1712869986721,-265827.31,0.00030632,6]
[322201268,1712869986731,-150.0,0.0003065,2]
[322201269,1712869986742,-6694.3109798,0.00030663,2]
[322201270,1712869986752,-6458.6492013,0.00030663,2]
[322201271,1712869986762,-73323.3735112,0.00030663,2]
[322201272,1712869986772,-259.98154966,0.00030682,4]
[322201273,1712869986782,-507.89,0.00030684,2]
[322201274,1712869986791,-590.86,0.00030684,2]
[322201275,1712869986802,-805.44,0.00030684,2]
[322201276,1712869986813,-629.54,0.00030684,2]
[322201277,1712869986823,-500.0,0.00030684,2]
[322201278,1712869986834,-500.0,0.00030684,2]
[322201279,1712869986844,-500.0,0.00030684,2]
[322201280,1712869986853,-765.12,0.00030684,2]
[322201281,1712869986863,-500.0,0.00030684,2]
[322201282,1712869986874,-673.55,0.00030684,2]
[322201283,1712869986885,-500.0,0.00030684,2]
[322201284,1712869986896,-500.0,0.00030684,2]
[322201285,1712869986906,-500.0,0.00030684,2]
[322201286,1712869986916,-500.0,0.00030684,2]
[322201287,1712869986926,-1055.22,0.00030684,2]
[322201288,1712869986935,-838.26,0.00030684,2]
[322201289,1712869986943,-513.12,0.00030684,2]
[322201290,1712869986952,-500.0,0.00030684,2]
[322201291,1712869986962,-561.16,0.00030684,2]
[322201292,1712869986972,-520.88,0.00030684,2]
[322201293,1712869986982,-500.0,0.00030684,2]
[322201294,1712869986992,-532.8,0.00030684,2]
[322201295,1712869987002,-717.66,0.00030684,2]
[322201296,1712869987013,-956.54,0.00030684,2]
[322201297,1712869987022,-500.0,0.00030684,2]
[322201298,1712869987032,-527.16,0.00030684,2]
[322201299,1712869987041,-500.0,0.00030684,2]
[322201300,1712869987053,-583.53,0.00030684,2]
[322201301,1712869987065,-500.0,0.00030684,2]
[322201302,1712869987076,-459.00896486,0.00030684,2]
[322201303,1712869987085,-500.0,0.00030684,2]
[322201304,1712869987095,-794.27,0.00030684,2]
[322201305,1712869987106,-775.81,0.00030684,2]
[322201306,1712869987115,-500.0,0.00030684,2]
[322201307,1712869987124,-1268.53,0.00030684,2]
[322201308,1712869987133,-579.81,0.00030684,2]
[322201309,1712869987143,-683.65,0.00030684,2]
[322201310,1712869987154,-500.0,0.00030684,2]
[322201311,1712869987166,-500.0,0.00030684,2]
[322201312,1712869987177,-500.0,0.00030684,2]
[322201313,1712869987186,-1283.53,0.00030684,2]
[322201314,1712869987195,-500.0,0.00030684,2]
[322201315,1712869987207,-1242.22,0.00030684,2]
[322201316,1712869987217,-686.6,0.00030684,2]
[322201317,1712869987228,-610.16,0.00030684,2]
[322201318,1712869987237,-964.51,0.00030684,2]
[322201319,1712869987247,-552.23,0.00030684,2]
[322201320,1712869987257,-500.0,0.00030684,2]
[322201321,1712869987266,-500.0,0.00030684,2]
[322201322,1712869987274,-993.58,0.00030684,2]
[322201323,1712869987283,-500.0,0.00030684,2]
[322201324,1712869987292,-675.23,0.00030684,2]
[322201325,1712869987302,-1308.49,0.00030684,2]
[322201326,1712869987311,-703.03,0.00030684,2]
[322201327,1712869987319,-564.56,0.00030684,2]
[322201328,1712869987329,-561.9,0.00030684,2]
[322201329,1712869987339,-560.79,0.00030684,2]
[322201330,1712869987348,-1067.51,0.00030684,2]
[322201331,1712869987357,-598.24,0.00030684,2]
[322201332,1712869987366,-691.29,0.00030684,2]
[322201333,1712869987375,-500.0,0.00030684,2]
[322201334,1712869987384,-500.0,0.00030684,2]
[322201335,1712869987397,-704.14,0.00030684,2]
[322201336,1712869987408,-500.0,0.00030684,2]
[322201337,1712869987417,-645.96,0.00030684,2]
[322201338,1712869987427,-1172.44,0.00030684,2]
[322201339,1712869987439,-1403.78,0.00030684,2]
[322201340,1712869987449,-820.3,0.00030684,2]
[322201341,1712869987458,-1352.31,0.00030684,2]
[322201342,1712869987468,-868.58,0.00030684,2]
[322201343,1712869987478,-1263.1,0.00030684,2]
[322201344,1712869987488,-1192.54,0.00030684,2]
[322201345,1712869987497,-1391.45,0.00030684,2]
[322201346,1712869987506,-811.44,0.00030684,2]
[322201347,1712869987515,-609.69,0.00030684,2]
[322201348,1712869987524,-676.3,0.00030684,2]
[322201349,1712869987533,-540.39,0.00030684,2]
[322201350,1712869987542,-1771.03,0.00030684,2]
[322201351,1712869987551,-541.31,0.00030684,2]
[322201352,1712869987560,-1468.06,0.00030684,2]
[322201353,1712869987569,-862.27,0.00030684,2]
[322201354,1712869987578,-1183.63,0.00030684,2]
[322201355,1712869987587,-500.0,0.00030684,2]
[322201356,1712869987596,-839.54,0.00030684,2]
[322201357,1712869987606,-500.0,0.00030684,2]
[322201358,1712869987615,-500.0,0.00030684,2]
[322201359,1712869987625,-1787.12,0.00030684,2]
[322201360,1712869987635,-500.0,0.00030684,2]
[322201361,1712869987644,-500.0,0.00030684,2]
[322201362,1712869987654,-1253.73,0.00030684,2]
[322201363,1712869987664,-735.73,0.00030684,2]
[322201364,1712869987674,-500.0,0.00030684,2]
[322201365,1712869987683,-1318.44,0.00030684,2]
[322201366,1712869987692,-700.59,0.00030684,2]
[322201367,1712869987703,-1495.11,0.00030684,2]
[322201368,1712869987712,-758.95,0.00030684,2]
[322201369,1712869987722,-521.21,0.00030684,2]
[322201370,1712869987732,-1654.67,0.00030684,2]
[322201371,1712869987742,-638.47,0.00030684,2]
[322201372,1712869987753,-1164.2,0.00030684,2]
[322201373,1712869987762,-500.0,0.00030684,2]
[322201374,1712869987774,-949.05,0.00030684,2]
[322201375,1712869987784,-306.03011495,0.00030684,2]
[322201376,1712869987795,-1096.04,0.00030684,2]
[322201377,1712869987805,-777.64,0.00030684,2]
[322201378,1712869987815,-646.84,0.00030684,2]
[322201379,1712869987824,-958.72,0.00030684,2]
[322201380,1712869987833,-683.7,0.00030684,2]
[322201381,1712869987843,-897.54,0.00030684,2]
[322201382,1712869987853,-684.68,0.00030684,2]
[322201383,1712869987863,-500.0,0.00030684,2]
[322201384,1712869987872,-543.38,0.00030684,2]
[322201385,1712869987881,-809.17,0.00030684,2]
[322201386,1712869987891,-698.14,0.00030684,2]
[322201387,1712869987900,-1067.08,0.00030684,2]
[322201388,1712869987910,-1021.38,0.00030684,2]
[322201389,1712869987919,-784.4,0.00030684,2]
[322201390,1712869987929,-1207.29,0.00030684,2]
[322201391,1712869987938,-853.95,0.00030684,2]
[322201392,1712869987947,-1154.75,0.00030684,2]
[322201393,1712869987957,-1500.39,0.00030684,2]
[322201394,1712869987966,-1102.48,0.00030684,2]
[322201395,1712869987976,-1684.95,0.00030684,2]
[322201396,1712869987986,-864.47,0.00030684,2]
[322201397,1712869987995,-1050.08,0.00030684,2]
[322201398,1712869988005,-1060.45,0.00030684,2]
[322201399,1712869988014,-727.49,0.00030684,2]
[322201400,1712869988024,-534.42,0.00030684,2]
[322201401,1712869988033,-500.0,0.00030684,2]
[322201402,1712869988043,-598.73,0.00030684,2]
[322201403,1712869988052,-500.0,0.00030684,2]
[322201404,1712869988061,-1013.17,0.00030684,2]
[322201405,1712869988071,-500.0,0.00030684,2]
[322201406,1712869988081,-552.15,0.00030684,2]
[322201407,1712869988091,-722.75,0.00030684,2]
[322201408,1712869988100,-585.74,0.00030684,2]
[322201409,1712869988110,-1454.96,0.00030684,2]
[322201410,1712869988119,-600.91,0.00030684,2]
[322201411,1712869988128,-627.17,0.00030684,2]
[322201412,1712869988137,-1870.66,0.00030684,2]
[322201413,1712869988147,-921.94,0.00030684,2]
[322201414,1712869988156,-1288.35,0.00030684,2]
[322201415,1712869988166,-500.0,0.00030684,2]
[322201416,1712869988176,-670.72,0.00030684,2]
[322201417,1712869988185,-1052.23,0.00030684,2]
[322201418,1712869988194,-1720.31,0.00030684,2]
[322201419,1712869988203,-500.0,0.00030684,2]
[322201420,1712869988212,-2622.22,0.00030684,2]
[322201421,1712869988221,-1850.14,0.00030684,2]
[322201422,1712869988230,-500.0,0.00030684,2]
[322201423,1712869988449,-500.0,0.00030684,2]
[322201424,1712869988458,-500.0,0.00030684,2]
[322201425,1712869988467,-869.29,0.00030684,2]
[322201426,1712869988478,-608.32769395,0.00030684,2]
[322201427,1712869988489,-933.06,0.00030684,2]
[322201428,1712869988498,-722.11,0.00030684,2]
[322201429,1712869988507,-500.0,0.00030684,2]
[322201430,1712869988517,-1172.68,0.00030684,2]
[322201431,1712869988526,-500.0,0.00030684,2]
[322201432,1712869988535,-500.0,0.00030684,2]
[322201433,1712869988544,-1203.46,0.00030684,2]
[322201434,1712869988553,-993.8,0.00030684,2]
[322201435,1712869988562,-500.0,0.00030684,2]
[322201436,1712869988571,-500.0,0.00030684,2]
[322201437,1712869988580,-150.0,0.00030684,2]
[322201438,1712869988589,-1318.86,0.00030684,2]
[322201439,1712869988598,-879.12,0.00030684,2]
[322201440,1712869988608,-1664.67,0.00030684,2]
[322201441,1712869988617,-500.0,0.00030684,2]
[322201442,1712869988626,-553.15,0.00030684,2]
[322201443,1712869988635,-916.81,0.00030684,2]
[322201444,1712869988645,-923.4,0.00030684,2]
[322201445,1712869988656,-1597.09,0.00030684,2]
[322201446,1712869988666,-500.0,0.00030684,2]
[322201447,1712869988678,-500.0,0.00030684,2]
[322201448,1712869988690,-500.0,0.00030684,2]
[322201449,1712869988700,-500.0,0.00030684,2]
[322201450,1712869988711,-1225.4,0.00030684,2]
[322201451,1712869988720,-249.2343078,0.00030684,2]
[322201452,1712869988729,-1736.6,0.00030684,2]
[322201453,1712869988738,-1687.78,0.00030684,2]
[322201454,1712869988747,-533.65,0.00030684,2]
[322201455,1712869988756,-892.21,0.00030684,2]
[322201456,1712869988765,-698.09,0.00030684,2]
[322201457,1712869988777,-500.0,0.00030684,2]
[322201458,1712869988786,-1618.97,0.00030684,2]
[322201459,1712869988796,-500.0,0.00030684,2]
[322201460,1712869988806,-500.0,0.00030684,2]
[322201461,1712869988815,-998.14,0.00030684,2]
[322201462,1712869988826,-500.0,0.00030684,2]
[322201463,1712869988836,-1890.51,0.00030684,2]
[322201464,1712869988846,-827.22,0.00030684,2]
[322201465,1712869988856,-500.0,0.00030684,2]
[322201466,1712869988866,-500.0,0.00030684,2]
[322201467,1712869988882,-500.0,0.00030684,2]
[322201468,1712869988894,-1646.03,0.00030684,2]
[322201469,1712869988904,-911.48,0.00030684,2]
[322201470,1712869988913,-767.01,0.00030684,2]
[322201471,1712869988923,-1116.76,0.00030684,2]
[322201472,1712869988934,-570.82,0.00030684,2]
[322201473,1712869988946,-1022.77,0.00030684,2]
[322201474,1712869988956,-831.5,0.00030684,2]
[322201475,1712869988966,-680.97,0.00030684,2]
[322201476,1712869988976,-500.0,0.00030684,2]
[322201477,1712869988985,-752.98,0.00030684,2]
[322201478,1712869988995,-500.0,0.00030684,2]
[322201479,1712869989005,-1499.79,0.00030684,2]
[322201480,1712869989015,-814.1,0.00030684,2]
[322201481,1712869989024,-7400.19,0.00030684,2]
[322201482,1712869989033,-1023.14,0.00030684,2]
[322201483,1712869989043,-700.72,0.00030684,2]
[322201484,1712869989052,-500.0,0.00030684,2]
[322201485,1712869989062,-950.09,0.00030684,2]
[322201486,1712869989071,-1871.77,0.00030684,2]
[322201487,1712869989081,-3724.71,0.00030684,2]
[322201488,1712869989090,-5395.14,0.00030684,2]
[322201489,1712869989100,-1464.27,0.00030684,2]
[322201490,1712869989109,-978.66,0.00030684,2]
[322201491,1712869989119,-500.0,0.00030684,2]
[322201492,1712869989129,-693.58,0.00030684,2]
[322201493,1712869989138,-984.51,0.00030684,2]
[322201494,1712869989147,-4620.04,0.00030684,2]
[322201495,1712869989157,-1300.92,0.00030684,2]
[322201496,1712869989166,-934.17,0.00030684,2]
[322201497,1712869989176,-1543.03,0.00030684,2]
[322201498,1712869989185,-5425.41,0.00030684,2]
[322201499,1712869989194,-500.0,0.00030684,2]
[322201500,1712869989203,-1214.31,0.00030684,2]
[322201501,1712869989213,-788.68,0.00030684,2]
[322201502,1712869989224,-613.33,0.00030684,2]
[322201503,1712869989233,-500.0,0.00030684,2]
[322201504,1712869989243,-500.0,0.00030684,2]
[322201505,1712869989252,-827.37,0.00030684,2]
[322201506,1712869989262,-1593.55,0.00030684,2]
[322201507,1712869989272,-1948.7,0.00030684,2]
[322201508,1712869989281,-500.0,0.00030684,2]
[322201509,1712869989290,-9749.83,0.00030684,2]
[322201510,1712869989300,-2131.76,0.00030684,2]
[322201511,1712869989309,-500.0,0.00030684,2]
[322201512,1712869989318,-1560.14,0.00030684,2]
[322201513,1712869989328,-1518.32,0.00030684,2]
[322201514,1712869989337,-661.44,0.00030684,2]
[322201515,1712869989346,-1413.3,0.00030684,2]
[322201516,1712869989355,-5230.96,0.00030684,2]
[322201517,1712869989364,-2479.01,0.00030684,2]
[322201518,1712869989374,-500.0,0.00030684,2]
[322201519,1712869989383,-3647.95,0.00030684,2]
[322201520,1712869989396,-1464.2,0.00030684,2]
[322201521,1712869989405,-1527.36,0.00030684,2]
[322201522,1712869989414,-1358.23,0.00030684,2]
[322201523,1712869989423,-1020.16,0.00030684,2]
[322201524,1712869989434,-668.8,0.00030684,2]
[322201525,1712869989443,-11162.19,0.00030684,2]
[322201526,1712869989452,-41084.78,0.00030684,2]
[322201527,1712869989462,-3874.31,0.00030684,2]
[322201528,1712869989472,-500.0,0.00030684,2]
[322201529,1712869989482,-740.63,0.00030684,2]
[322201530,1712869989491,-500.0,0.00030684,2]
[322201531,1712869989501,-500.0,0.00030684,2]
[322201532,1712869989510,-548.57,0.00030684,2]
[322201533,1712869989520,-7785.82,0.00030684,2]
[322201534,1712869989529,-1513.09,0.00030684,2]
[322201535,1712869989539,-567.17,0.00030684,2]
[322201536,1712869989548,-3631.93,0.00030684,2]
[322201537,1712869989558,-8421.98,0.00030684,2]
[322201538,1712869989567,-3207.81,0.00030684,2]
[322201539,1712869989576,-2311.09,0.00030684,2]
[322201540,1712869989585,-500.0,0.00030684,2]
[322201541,1712869989594,-12662.48,0.00030684,2]
[322201542,1712869989604,-921.98,0.00030684,2]
[322201543,1712869989613,-500.0,0.00030684,2]
[322201544,1712869989622,-1525.4,0.00030684,2]
[322201545,1712869989632,-1851.69,0.00030684,2]
[322201546,1712869989640,-875.02,0.00030684,2]
[322201547,1712869989650,-7402.21,0.00030684,2]
[322201548,1712869989659,-3131.37,0.00030684,2]
[322201549,1712869989668,-2709.87,0.00030684,2]
[322201550,1712869989677,-500.0,0.00030684,2]
[322201551,1712869989687,-1503.27,0.00030684,2]
[322201552,1712869989696,-2499.54,0.00030684,2]
[322201553,1712869989705,-650.21,0.00030684,2]
[322201554,1712869989714,-5388.34,0.00030684,2]
[322201555,1712869989724,-1676.04,0.00030684,2]
[322201556,1712869989733,-2309.38,0.00030684,2]
[322201557,1712869989742,-643.01,0.00030684,2]
[322201558,1712869989752,-5653.29,0.00030684,2]
[322201559,1712869989761,-928.47,0.00030684,2]
[322201560,1712869989771,-1703.86,0.00030684,2]
[322201561,1712869989780,-790.7,0.00030684,2]
[322201562,1712869989789,-2381.75,0.00030684,2]
[322201563,1712869989798,-852.74,0.00030684,2]
[322201564,1712869989808,-2994.14,0.00030684,2]
[322201565,1712869989817,-500.0,0.00030684,2]
[322201566,1712869989827,-4680.33,0.00030684,2]
[322201567,1712869989836,-21256.33,0.00030684,2]
[322201568,1712869989846,-2204.86,0.00030684,2]
[322201569,1712869989855,-989.07,0.00030684,2]
[322201570,1712869989864,-5675.36,0.00030684,2]
[322201571,1712869989873,-660.51,0.00030684,2]
[322201572,1712869989883,-2867.21,0.00030684,2]
[322201573,1712869989892,-1346.35,0.00030684,2]
[322201574,1712869989902,-500.0,0.00030684,2]
[322201575,1712869989911,-2960.74,0.00030684,2]
[322201576,1712869989921,-887.19,0.00030684,2]
[322201577,1712869989930,-1179.12,0.00030684,2]
[322201578,1712869989939,-1283.97,0.00030684,2]
[322201579,1712869989948,-872.68,0.00030684,2]
[322201580,1712869989958,-1502.33,0.00030684,2]
[322201581,1712869989967,-10128.26,0.00030684,2]
[322201582,1712869989983,-683.97,0.00030684,2]
[322201583,1712869990007,-500.0,0.00030684,2]
[322201584,1712869990023,-623.58,0.00030684,2]
[322201585,1712869990043,-1185.71,0.00030684,2]
[322201586,1712869990059,-1427.1,0.00030684,2]
[322201587,1712869990078,-2367.24,0.00030684,2]
[322201588,1712869990097,-500.0,0.00030684,2]
[322201589,1712869990115,-2143.26,0.00030684,2]
[322201590,1712869990134,-500.0,0.00030684,2]
[322201591,1712869990151,-1106.87,0.00030684,2]
[322201592,1712869990169,-2686.26,0.00030684,2]
[322201593,1712869990193,-2721.81,0.00030684,2]
[322201594,1712869990207,-3567.1,0.00030684,2]
[322201595,1712869990222,-3548.97,0.00030684,2]
[322201596,1712869990240,-19344.8,0.00030684,2]
[322201597,1712869990256,-1844.22,0.00030684,2]
[322201598,1712869990273,-537.03,0.00030684,2]
[322201599,1712869990290,-1228.02,0.00030684,2]
[322201600,1712869990307,-3053.42,0.00030684,2]
[322201601,1712869990322,-4239.16,0.00030684,2]
[322201602,1712869990339,-1745.12,0.00030684,2]
[322201603,1712869990356,-3035.53,0.00030684,2]
[322201604,1712869990372,-4808.47,0.00030684,2]
[322201605,1712869990387,-2664.5,0.00030684,2]
[322201606,1712869990408,-1373.93,0.00030684,2]
[322201607,1712869990424,-505.74,0.00030684,2]
[322201608,1712869990439,-738.07,0.00030684,2]
[322201609,1712869990454,-1109.77,0.00030684,2]
[322201610,1712869990470,-2221.72,0.00030684,2]
[322201611,1712869990488,-3190.86,0.00030684,2]
[322201612,1712869990504,-17424.44,0.00030684,2]
[322201613,1712869990519,-2263.75,0.00030684,2]
[322201614,1712869990534,-1128.64,0.00030684,2]
[322201615,1712869990548,-1502.24,0.00030684,2]
[322201616,1712869990562,-612.74,0.00030684,2]
[322201617,1712869990576,-500.0,0.00030684,2]
[322201618,1712869990592,-17072.27,0.00030684,2]
[322201619,1712869990607,-3052.22,0.00030684,2]
[322201620,1712869990623,-500.0,0.00030684,2]
[322201621,1712869990638,-3640.47,0.00030684,2]
[322201622,1712869990654,-1957.97,0.00030684,2]
[322201623,1712869990670,-500.0,0.00030684,2]
[322201624,1712869990686,-955.9,0.00030684,2]
[322201625,1712869990700,-500.0,0.00030684,2]
[322201626,1712869990714,-500.0,0.00030684,2]
[322201627,1712869990729,-3659.25,0.00030684,2]
[322201628,1712869990743,-5766.3,0.00030684,2]
[322201629,1712869990758,-3575.16,0.00030684,2]
[322201630,1712869990773,-711.78,0.00030684,2]
[322201631,1712869990788,-500.0,0.00030684,2]
[322201632,1712869990802,-7639.5,0.00030684,2]
[322201633,1712869990817,-1392.31,0.00030684,2]
[322201634,1712869990831,-7389.58,0.00030684,2]
[322201635,1712869990845,-3014.69,0.00030684,2]
[322201636,1712869990859,-2191.02,0.00030684,2]
[322201637,1712869990873,-5336.03,0.00030684,2]
[322201638,1712869990888,-4291.51,0.00030684,2]
[322201639,1712869990903,-1051.14,0.00030684,2]
[322201640,1712869990917,-604.03,0.00030684,2]
[322201641,1712869990932,-52708.74,0.00030684,2]
[322201642,1712869990946,-3260.75,0.00030684,2]
[322201643,1712869990961,-5115.15,0.00030684,2]
[322201644,1712869990974,-882.87,0.00030684,2]
[322201645,1712869990988,-5854.93,0.00030684,2]
[322201646,1712869991003,-8061.26,0.00030684,2]
[322201647,1712869991017,-916.85,0.00030684,2]
[322201648,1712869991031,-745.2,0.00030684,2]
[322201649,1712869991045,-7112.46,0.00030684,2]
[322201650,1712869991060,-6099.37,0.00030684,2]
[322201651,1712869991075,-1872.85,0.00030684,2]
[322201652,1712869991089,-1834.17,0.00030684,2]
[322201653,1712869991103,-5187.78,0.00030684,2]
[322201654,1712869991117,-1268.14,0.00030684,2]
[322201655,1712869991132,-391.52,0.00030684,2]